bitfinex/quotes_ETHUSD_20250802
["timestamp","ask_amount","ask_price","bid_price","bid_amount"]
[1754108564680,13.5417396,3527.5,3526.6,0.002]
[1754108564879,15.65233412,3527.5,3526.6,0.002]
[1754108567028,12.34416524,3527.5,3526.9,0.4651]
[1754108567883,11.89966524,3527.5,3526.9,0.4651]
[1754108568080,11.89966524,3527.5,3527.1,0.4651]
[1754108568634,9.7606,3527.5,3527.4,0.922]
[1754108568960,9.7606,3527.5,3527.4,0.002]
[1754108570060,5.3966,3527.5,3527.4,0.002]
[1754108570273,9.7616,3527.5,3527.4,0.002]
[1754108572050,8.0566,3527.5,3527.4,0.002]
[1754108572252,9.83970449,3527.5,3527.4,0.002]
[1754108574231,2.47470449,3527.5,3527.4,0.002]
[1754108574464,6.83970449,3527.5,3527.4,0.9268]
[1754108577950,4.5056,3527.5,3527.4,0.9268]
[1754108578147,0.6916,3527.5,3527.4,0.9268]
[1754108578351,4.5056,3527.5,3527.4,0.9268]
[1754108579782,0.1416,3527.5,3527.4,0.9268]
[1754108579939,4.5056,3527.5,3527.4,0.9268]
[1754108583839,0.1416,3527.5,3527.4,0.9268]
[1754108584072,4.5056,3527.5,3527.4,0.9268]
[1754108584478,0.1416,3527.5,3527.4,0.9268]
[1754108584654,4.364,3527.5,3527.4,0.9268]
[1754108585885,4.364,3527.5,3527.4,9.15803216]
[1754108586069,4.364,3527.5,3527.4,10.08799538]
[1754108586371,0.1416,3527.6,3527.4,10.08799538]
[1754108586673,0.1416,3527.6,3527.5,0.9248]
[1754108586878,4.5046,3527.6,3527.5,0.9248]
[1754108589546,4.363,3527.8,3527.5,0.9248]
[1754108589748,4.363,3527.9,3527.6,1.93359954]
[1754108590045,4.363,3527.9,3527.7,0.9248]
[1754108590386,4.363,3527.9,3527.8,9.15603216]
[1754108591889,4.363,3527.9,3527.8,0.9248]
[1754108599190,0.1416,3528.0,3527.8,0.9248]
[1754108599376,0.1416,3528.0,3527.6,1.00879954]
[1754108599697,0.1416,3528.0,3527.9,0.9248]
[1754108601598,4.5036,3528.1,3527.9,0.9248]
[1754108601788,0.1426,3528.1,3528.0,0.9029]
[1754108602295,0.55,3528.0,3527.5,0.1416]
[1754108602498,0.4445,3527.9,3527.5,0.1416]
[1754108602713,0.1416,3527.6,3527.4,0.002]
[1754108602867,0.02847072,3527.5,3527.4,0.002]
[1754108603068,0.47297072,3527.5,3527.4,0.002]
[1754108604705,0.02847072,3527.5,3527.4,0.002]
[1754108606222,0.1416,3527.6,3527.4,0.002]
[1754108606974,0.02847072,3527.5,3527.4,0.002]
[1754108607467,0.1416,3527.6,3527.4,0.002]
[1754108607671,0.68607707,3527.6,3527.4,0.002]
[1754108607915,1.4647,3527.5,3527.4,0.002]
[1754108608287,0.55,3527.5,3527.4,0.002]
[1754108608505,1.4647,3527.5,3527.4,0.002]
[1754108613585,0.55,3527.5,3527.4,0.002]
[1754108613786,5.07805771,3527.5,3527.4,0.002]
[1754108614696,5.52255771,3527.5,3527.4,0.002]
[1754108614993,5.99275771,3527.5,3527.4,0.002]
[1754108616893,5.52255771,3527.5,3527.4,0.002]
[1754108617086,5.07805771,3527.5,3527.4,0.002]
[1754108620918,4.359,3527.5,3527.4,0.9049]
[1754108621237,4.5006,3527.5,3527.4,0.9049]
[1754108621400,5.0506,3527.5,3527.4,0.002]
[1754108622313,5.0506,3527.5,3527.4,0.4645]
[1754108624422,4.5006,3527.5,3527.4,0.9049]
[1754108626806,4.5006,3527.5,3527.4,0.4645]
[1754108628232,4.5006,3527.5,3527.4,0.9049]
[1754108628732,5.94516,3527.5,3527.4,0.002]
[1754108628887,5.50066,3527.5,3527.4,0.002]
[1754108629927,1.14166,3527.5,3527.4,0.4645]
[1754108630102,5.0496,3527.5,3527.4,0.4645]
[1754108632408,5.0496,3527.5,3527.4,0.002]
[1754108633997,5.0496,3527.5,3527.4,0.4655]
[1754108634597,5.0496,3527.5,3527.4,0.002]
[1754108635538,5.0496,3527.5,3527.4,0.4655]
[1754108636066,5.0486,3527.5,3527.4,0.4655]
[1754108638218,4.4986,3527.5,3527.4,0.4655]
[1754108638410,5.49846,3527.5,3527.4,0.002]
[1754108640953,6.38166,3527.5,3527.4,0.002]
[1754108645322,1.14146,3527.5,3527.4,0.002]
[1754108645525,5.49746,3527.5,3527.4,0.4655]
[1754108646356,5.49746,3527.5,3527.4,0.002]
[1754108646519,7.20246,3527.5,3527.4,0.002]
[1754108646723,0.1416,3527.5,3527.4,0.4655]
[1754108647040,4.4976,3527.5,3527.4,0.9101]
[1754108647364,4.4976,3527.5,3527.4,0.002]
[1754108647365,5.0476,3527.5,3527.4,0.002]
[1754108647575,5.0476,3527.5,3527.4,0.4655]
[1754108648063,5.0476,3527.5,3527.4,0.9101]
[1754108648266,5.72286,3527.5,3527.4,0.9101]
[1754108648951,4.4976,3527.5,3527.4,0.9101]
[1754108651335,4.4976,3527.5,3527.4,9.14133216]
[1754108657481,4.4976,3527.5,3527.4,0.9101]
[1754108657858,5.4863,3527.5,3527.4,0.002]
[1754108658079,6.47943,3527.5,3527.4,0.002]
[1754108659286,5.59623,3527.5,3527.4,0.002]
[1754108660842,5.59623,3527.5,3527.4,0.4655]
[1754108662386,1.705,3527.9,3527.4,0.002]
[1754108662585,0.1416,3527.5,3527.4,0.002]
[1754108662991,0.1416,3527.5,3527.4,0.9155]
[1754108664566,4.4956,3527.5,3527.4,0.9155]
[1754108671789,4.4946,3527.5,3527.4,0.9155]
[1754108675609,4.4936,3527.5,3527.4,0.9155]
[1754108677407,4.4936,3527.5,3527.4,0.002]
[1754108679222,4.4936,3527.5,3527.4,0.4792]
[1754108679926,4.4936,3527.5,3527.4,0.9155]
[1754108680091,4.352,3527.5,3527.4,1.83017322]
[1754108682718,0.1416,3527.6,3527.4,1.83017322]
[1754108683028,0.1416,3527.8,3527.5,9.14473216]
[1754108683191,0.1416,3527.8,3527.5,8.23123216]
[1754108683396,0.1416,3527.8,3527.6,0.9135]
[1754108683819,0.1416,3527.8,3527.6,1.93380054]
[1754108684007,4.352,3527.9,3527.7,0.9135]
[1754108684215,4.352,3527.9,3527.6,1.16190054]
[1754108684422,4.352,3527.9,3527.8,0.9135]
[1754108688039,4.351,3528.0,3527.8,0.9135]
[1754108688220,0.1426,3528.1,3527.9,8.23123216]
[1754108688411,0.1426,3528.1,3527.9,8.66753216]
[1754108688611,0.1426,3528.1,3528.0,0.4772]
[1754108688813,4.4926,3528.1,3528.0,0.4772]
[1754108689111,4.4926,3528.1,3528.0,0.9135]
[1754108689700,4.4926,3528.1,3528.0,0.4772]
[1754108689903,4.4926,3528.1,3528.0,0.9135]
[1754108691933,4.4926,3528.1,3528.0,0.4772]
[1754108692432,4.4926,3528.1,3527.9,8.23123216]
[1754108692734,4.4926,3528.1,3527.9,8.71513216]
[1754108692901,4.4926,3528.1,3527.9,9.17893216]
[1754108693234,4.4926,3528.1,3527.9,8.71513216]
[1754108693536,4.4926,3528.1,3527.9,0.4839]
[1754108694234,4.35,3528.0,3527.9,0.4839]
[1754108699715,5.70683072,3528.0,3527.8,0.002]
[1754108699916,1.0207,3527.9,3527.8,0.002]
[1754108701206,0.1416,3527.9,3527.8,0.002]
[1754108701615,0.001,3528.1,3527.8,9.18093216]
[1754108701819,4.349,3528.0,3527.9,0.9477]
[1754108702113,4.349,3528.0,3527.8,8.23323216]
[1754108702319,4.349,3528.0,3527.8,0.002]
[1754108702934,4.88891707,3528.0,3527.8,0.002]
[1754108703238,0.1416,3527.9,3527.8,0.002]
[1754108704245,4.4896,3527.9,3527.8,0.4859]
[1754108704548,4.4896,3527.9,3527.8,0.9497]
[1754108707625,0.1416,3527.9,3527.8,0.9497]
[1754108707964,4.4896,3527.9,3527.8,0.9497]
[1754108709129,0.1416,3527.9,3527.8,0.9497]
[1754108709333,4.348,3527.9,3527.8,1.86779322]
[1754108711748,0.001,3528.1,3527.8,1.86779322]
[1754108711935,0.001,3528.1,3528.0,8.23123216]
[1754108712327,0.001,3528.1,3528.0,9.17893216]
[1754108712657,0.001,3528.1,3528.0,10.1888347]
[1754108713161,0.001,3528.1,3528.0,10.3304347]
[1754108713923,0.001,3528.1,3528.0,13.3304347]
[1754108719061,0.001,3528.5,3528.1,3.0]
[1754108719262,0.001,3528.5,3528.4,8.23123216]
[1754108719470,0.001,3528.5,3528.4,8.37283216]
[1754108719792,0.1416,3529.1,3528.4,8.37283216]
[1754108719793,0.001,3529.6,3528.4,9.29248816]
[1754108719971,0.001,3530.0,3529.4,3.0]
[1754108720279,0.001,3530.0,3529.9,8.23123216]
[1754108725763,0.495,3530.0,3529.5,13.69935538]
[1754108725966,0.494,3529.9,3529.5,13.84095538]
[1754108726154,0.001,3530.0,3529.9,8.23123216]
[1754108726551,0.001,3530.0,3529.9,8.69883216]
[1754108727359,0.001,3530.0,3529.9,8.23123216]
[1754108730629,0.001,3530.0,3529.7,0.1416]
[1754108730834,0.9568,3529.9,3529.7,0.1416]
[1754108731078,1.10758,3529.8,3529.7,0.1416]
[1754108731370,0.15078,3529.8,3527.8,3.002]
[1754108731542,0.1416,3529.1,3528.6,0.1416]
[1754108731737,0.1416,3528.9,3528.4,8.37283216]
[1754108731936,0.1416,3528.9,3528.5,3.92759322]
[1754108732155,0.6356,3528.9,3528.5,3.92759322]
[1754108732364,0.6356,3528.9,3528.5,0.92759322]
[1754108732569,0.6356,3528.9,3528.5,3.92759322]
[1754108732868,0.1416,3528.7,3528.4,8.23123216]
[1754108734468,0.1416,3528.5,3528.4,8.23123216]
[1754108734637,0.1416,3528.5,3528.4,11.23123216]
[1754108735038,0.1416,3528.5,3527.4,0.853821]
[1754108735039,4.4846,3528.5,3527.4,0.002]
[1754108735248,0.1416,3528.1,3527.6,9.27593216]
[1754108735449,0.1416,3528.1,3527.8,0.92979322]
[1754108738885,0.494,3528.0,3527.8,0.002]
[1754108739062,0.6916,3527.9,3527.8,0.002]
[1754108739460,1.6484,3527.9,3527.8,0.002]
[1754108739853,0.55,3527.8,3527.4,0.002]
[1754108740091,0.6916,3527.5,3527.4,0.002]
[1754108740289,0.72007072,3527.5,3527.4,0.002]
[1754108740585,1.6484,3527.5,3527.4,0.002]
[1754108743506,5.0346,3527.5,3527.4,0.002]
[1754108743807,4.4846,3527.5,3527.4,0.002]
[1754108744104,0.1416,3527.5,3527.4,0.002]
[1754108744419,0.1416,3527.5,3527.4,0.9051]
[1754108744555,4.4856,3527.5,3527.4,0.9051]
[1754108746462,0.1416,3527.5,3527.4,0.9051]
[1754108746789,4.344,3527.7,3527.4,1.0467]
[1754108747160,4.344,3527.7,3527.5,0.9031]
[1754108747455,4.344,3527.7,3527.4,0.1436]
[1754108747657,0.1416,3527.5,3527.4,0.002]
[1754108749622,4.4856,3527.5,3527.4,0.4696]
[1754108749759,0.1416,3527.5,3527.4,0.9051]
[1754108749964,4.4856,3527.5,3527.4,0.9051]
[1754108750883,4.344,3527.5,3527.4,0.9051]
[1754108752165,0.1416,3527.7,3527.4,13.08058454]
[1754108752368,4.344,3527.6,3527.5,2.38571845]
[1754108752677,4.344,3527.7,3527.5,2.38571845]
[1754108752913,4.344,3527.7,3527.6,0.9219]
[1754108754406,4.344,3527.7,3527.6,0.4763]
[1754108754576,6.812,3528.1,3527.6,0.9219]
[1754108754780,4.344,3527.7,3527.6,0.9219]
[1754108755572,6.812,3528.1,3527.6,0.9219]
[1754108755912,6.812,3528.1,3527.7,0.9219]
[1754108755913,4.344,3528.0,3527.7,0.9219]
[1754108756120,4.344,3528.0,3527.9,0.1416]
[1754108756415,4.344,3528.0,3527.9,1.0635]
[1754108756896,0.1416,3528.4,3527.9,1.0635]
[1754108757067,0.1416,3528.4,3527.9,0.1416]
[1754108757068,4.343,3528.3,3527.9,0.1416]
[1754108757269,4.343,3528.3,3528.0,0.9219]
[1754108757490,4.343,3528.3,3528.1,0.9219]
[1754108757685,4.343,3528.3,3527.9,0.1416]
[1754108757886,4.343,3528.3,3528.0,0.9219]
[1754108758099,4.343,3528.3,3527.9,0.1416]
[1754108758278,4.343,3528.3,3528.0,0.9219]
[1754108758475,4.343,3528.3,3528.1,0.4763]
[1754108758690,4.343,3528.2,3528.0,0.4456]
[1754108759197,0.1416,3528.4,3528.1,0.4763]
[1754108759568,4.343,3528.3,3528.1,0.4763]
[1754108762998,4.344,3528.3,3528.1,0.4763]
[1754108763596,4.344,3528.3,3528.0,8.65241499]
[1754108764006,4.344,3528.3,3528.0,9.12871499]
[1754108764207,4.344,3528.3,3528.1,0.4763]
[1754108764368,0.4888,3528.2,3527.4,0.002]
[1754108764570,0.02847072,3528.1,3527.4,0.002]
[1754108764882,0.4888,3528.0,3527.4,3.002]
[1754108767474,0.4888,3528.0,3527.4,3.8420042]
[1754108768472,0.4888,3528.1,3527.4,0.002]
[1754108768668,0.4888,3528.1,3527.5,8.20681499]
[1754108768905,0.4888,3528.1,3527.5,8.68311499]
[1754108770008,4.8328,3528.3,3527.6,0.4763]
[1754108770809,4.8328,3528.3,3527.6,0.9219]
[1754108771232,5.36244,3528.3,3527.6,0.9219]
[1754108771408,4.87364,3528.3,3527.6,0.9219]
[1754108771613,4.87364,3528.3,3527.5,8.20681499]
[1754108771614,0.9524,3528.2,3527.5,8.20681499]
[1754108771909,0.4888,3528.1,3527.5,8.20681499]
[1754108772108,0.4888,3528.1,3527.5,8.68311499]
[1754108774013,4.87364,3528.3,3527.6,0.9219]
[1754108774211,4.343,3528.2,3527.9,8.20681499]
[1754108774510,0.1416,3528.0,3527.9,8.20681499]
[1754108775129,0.1416,3528.0,3527.9,9.12871499]
[1754108776026,0.001,3528.3,3527.9,9.12871499]
[1754108776201,4.343,3528.1,3528.0,0.9219]
[1754108777437,4.343,3528.1,3527.9,8.34841499]
[1754108777598,4.343,3528.1,3527.9,8.20681499]
[1754108777798,0.1416,3528.0,3527.9,8.20681499]
[1754108778312,0.1416,3528.0,3527.9,8.68311499]
[1754108778534,0.1416,3528.0,3527.6,3.0]
[1754108778830,0.1416,3528.0,3527.7,0.9219]
[1754108779329,0.1416,3528.0,3527.8,0.4763]
[1754108779625,0.1416,3528.0,3527.9,8.20681499]
[1754108779999,0.1416,3528.0,3527.9,9.12871499]
[1754108780400,4.342,3528.1,3527.9,9.12871499]
[1754108780601,4.342,3528.1,3528.0,0.9219]
[1754108783012,4.342,3528.1,3528.0,0.4763]
[1754108783203,4.342,3528.1,3527.9,8.20681499]
[1754108783404,0.1426,3528.3,3527.9,8.20681499]
[1754108783627,4.342,3528.2,3527.9,8.20681499]
[1754108783832,1.0152,3528.1,3527.4,0.002]
[1754108784037,0.55,3527.9,3527.4,0.002]
[1754108784396,0.4658,3527.8,3527.6,0.002]
[1754108784597,4.892,3527.7,3527.6,0.002]
[1754108784823,5.47714707,3527.7,3527.6,0.002]
[1754108785032,6.40814707,3527.7,3527.6,0.002]
[1754108785627,2.06614707,3527.7,3527.6,0.002]
[1754108785831,5.823,3527.7,3527.6,0.002]
[1754108789908,5.3572,3527.7,3527.6,0.002]
[1754108790426,4.892,3527.7,3527.6,0.002]
[1754108791216,5.3572,3527.7,3527.6,0.002]
[1754108792315,1.0152,3527.7,3527.6,0.002]
[1754108792516,5.3582,3527.7,3527.6,0.002]
[1754108793334,4.893,3527.7,3527.6,0.002]
[1754108793906,5.0346,3527.7,3527.6,0.002]
[1754108794105,5.0346,3527.7,3527.6,0.4564]
[1754108794306,5.0346,3527.7,3527.6,0.002]
[1754108795140,5.53806,3527.7,3527.6,0.002]
[1754108795336,6.00326,3527.7,3527.6,0.002]
[1754108795902,5.53806,3527.7,3527.6,0.002]
[1754108796833,7.24206,3527.7,3527.6,0.002]
[1754108797058,6.00326,3527.7,3527.6,0.002]
[1754108798209,6.46906,3527.7,3527.6,0.002]
[1754108799115,5.90326,3527.7,3527.6,0.002]
[1754108799343,36.36906,3527.7,3527.6,0.002]
[1754108800042,40.90776816,3527.7,3527.6,0.002]
[1754108801640,38.07306,3527.7,3527.6,0.002]
[1754108802548,2.79906,3527.7,3527.6,0.002]
[1754108802761,7.14206,3527.7,3527.6,0.002]
[1754108802946,0.1416,3527.7,3527.6,0.002]
[1754108803118,4.4846,3527.7,3527.6,0.002]
[1754108803454,0.6916,3527.7,3527.6,0.002]
[1754108803678,4.4846,3527.7,3527.6,0.9103]
[1754108803882,5.0346,3527.7,3527.6,0.9103]
[1754108804018,0.6916,3527.7,3527.6,0.9103]
[1754108804416,5.0346,3527.7,3527.6,0.9103]
[1754108805037,5.0346,3527.7,3527.6,0.4564]
[1754108805252,5.0346,3527.7,3527.6,0.002]
[1754108805649,5.53806,3527.7,3527.6,0.002]
[1754108807337,1.19506,3527.7,3527.6,0.002]
[1754108807638,5.0346,3527.7,3527.6,0.002]
[1754108808525,5.0346,3527.7,3527.6,0.4564]
[1754108808716,5.0346,3527.7,3527.6,0.9103]
[1754108809122,0.1416,3527.7,3527.6,0.9103]
[1754108809322,4.4846,3527.7,3527.6,0.9103]
[1754108810325,0.1416,3527.7,3527.6,1.82285342]
[1754108810726,4.4846,3527.7,3527.6,1.82285342]
[1754108811142,4.343,3527.7,3527.6,1.82285342]
[1754108812576,0.001,3528.0,3527.6,1.82285342]
[1754108812858,4.343,3527.7,3527.6,0.91455342]
[1754108813028,4.343,3527.7,3527.6,0.002]
[1754108813228,4.343,3527.7,3527.6,0.9261]
[1754108813460,0.1426,3528.0,3527.6,0.9261]
[1754108813658,0.001,3528.0,3527.7,0.462]
[1754108813959,4.342,3527.9,3527.7,1.0657]
[1754108814159,4.342,3527.9,3527.8,0.9241]
[1754108814730,0.001,3528.0,3527.8,0.9241]
[1754108814947,0.001,3528.0,3527.9,0.9241]
[1754108815156,4.343,3528.0,3527.9,0.9241]
[1754108817943,0.001,3528.0,3527.9,0.9241]
[1754108818142,4.343,3528.0,3527.9,0.9241]
[1754108818544,0.001,3528.0,3527.9,0.9241]
[1754108818759,4.343,3528.0,3527.9,0.9241]
[1754108820051,0.001,3528.0,3527.9,0.9241]
[1754108820351,4.343,3528.0,3527.9,0.9241]
[1754108821538,0.001,3528.0,3527.9,0.9241]
[1754108822772,0.001,3528.0,3527.9,2.24751227]
[1754108822975,0.001,3528.0,3527.9,0.9241]
[1754108823254,0.001,3528.0,3527.9,1.0657]
[1754108823574,0.001,3528.0,3527.9,1.2083]
[1754108826071,0.001,3528.0,3527.9,4.2083]
[1754108834678,0.001,3528.3,3527.9,7.07117706]
[1754108834878,0.001,3528.4,3528.3,3.0]
[1754108835250,0.001,3528.4,3528.3,4.0657]
[1754108839366,0.001,3528.7,3528.3,4.0657]
[1754108839565,0.001,3528.7,3528.6,11.2016714]
[1754108839784,0.001,3528.7,3528.6,12.47759854]
[1754108839987,0.001,3528.7,3528.6,13.10469854]
[1754108840284,0.001,3528.7,3528.6,14.02879854]
[1754108846812,0.43894156,3529.3,3528.7,3.0]
[1754108847018,0.43894156,3529.3,3529.2,8.2016714]
[1754108847506,0.89704156,3529.3,3529.2,8.2016714]
[1754108848211,0.4581,3529.7,3529.2,8.2016714]
[1754108848374,0.4581,3529.6,3529.2,8.2016714]
[1754108848577,0.4581,3529.5,3529.2,8.2016714]
[1754108848897,0.466,3529.4,3529.2,8.2016714]
[1754108849093,0.466,3529.3,3529.2,8.2016714]
[1754108850481,0.9241,3529.5,3529.2,8.2016714]
[1754108850683,0.466,3529.4,3529.2,8.2016714]
[1754108850997,0.1416,3529.7,3529.2,9.16880334]
[1754108851196,7.362,3530.5,3529.6,8.2016714]
[1754108851197,0.6076,3530.2,3529.6,8.2016714]
[1754108851398,0.467,3530.0,3529.7,0.1416]
[1754108851573,0.466,3529.9,3529.7,0.1416]
[1754108851980,0.001,3530.0,3529.7,0.6086]
[1754108852520,0.467,3530.0,3529.7,0.6086]
[1754108854015,0.001,3530.0,3529.7,0.6086]
[1754108855315,0.001,3530.0,3529.7,1.0851]
[1754108857019,0.001,3530.0,3529.7,1.58363714]
[1754108857217,0.001,3530.0,3529.8,0.4765]
[1754108858515,0.001,3530.0,3529.7,1.58363714]
[1754108858690,0.001,3530.0,3529.8,0.9401]
[1754108859091,0.001,3530.0,3529.8,0.4765]
[1754108859815,0.001,3530.0,3529.8,0.9401]
[1754108860200,0.001,3530.0,3529.8,0.4765]
[1754108860992,0.001,3530.0,3529.9,0.6052]
[1754108861382,0.001,3530.0,3529.9,1.933047]
[1754108862015,0.001,3530.0,3529.9,1.469447]
[1754108864212,0.001,3530.0,3529.9,1.933047]
[1754108865042,0.001,3530.0,3529.9,1.469447]
[1754108866441,0.001,3530.0,3529.9,3.09109958]
[1754108890831,0.001,3530.0,3529.9,2.94949958]
[1754108896035,0.001,3530.0,3529.9,5.94949958]
[1754108898526,0.001,3530.0,3529.9,10.28249958]
[1754108898895,0.001,3530.0,3529.9,16.54975115]
[1754108900810,0.001,3530.0,3529.9,16.69135115]
[1754108903048,0.5681,3530.8,3530.0,3.0]
[1754108903341,0.4745,3530.8,3530.7,6.26725157]
[1754108905623,0.1416,3530.9,3530.7,6.26725157]
[1754108905937,0.6161,3530.9,3530.7,6.26725157]
[1754108906243,4.332,3531.2,3530.8,0.1416]
[1754108906244,4.7939,3531.2,3530.8,0.1416]
[1754108906539,0.4745,3530.9,3530.8,0.1416]
[1754108906747,0.4745,3530.9,3530.8,6.40885157]
[1754108907100,0.1416,3531.3,3530.8,6.40885157]
[1754108907308,5.2674,3531.2,3531.1,6.26725157]
[1754108910141,4.4726,3531.3,3531.1,6.26725157]
[1754108911204,4.331,3531.3,3531.1,6.26725157]
[1754108911437,4.331,3531.3,3531.1,6.75775157]
[1754108911600,4.331,3531.3,3531.1,7.22405157]
[1754108912348,0.1416,3531.4,3531.1,7.22405157]
[1754108912512,4.4726,3531.4,3531.1,6.73355157]
[1754108912840,4.4726,3531.4,3531.1,7.22405157]
[1754108913051,4.4726,3531.4,3531.1,6.75775157]
[1754108913441,0.001,3531.3,3531.1,6.75775157]
[1754108913642,0.001,3531.3,3531.1,6.26725157]
[1754108913976,0.001,3531.3,3531.2,1.14493896]
[1754108914508,0.001,3531.3,3531.2,1.63543896]
[1754108914731,0.001,3531.3,3531.2,2.10993896]
[1754108915163,0.001,3531.3,3531.2,2.57623896]
[1754108916666,0.001,3531.3,3531.2,2.71783896]
[1754108918672,0.001,3531.3,3531.2,5.71783896]
[1754108930500,0.001,3531.3,3531.2,4.76103896]
[1754108930701,0.9374,3531.3,3531.2,0.6161]
[1754108931201,0.9374,3531.3,3531.2,0.1416]
[1754108932668,0.4755,3531.3,3531.2,0.1416]
[1754108933609,0.9465,3531.3,3530.5,4.327]
[1754108933793,0.9455,3531.2,3530.7,0.1416]
[1754108934197,0.1426,3531.3,3530.7,0.1416]
[1754108934504,0.9455,3531.1,3530.7,0.1416]
[1754108934712,0.9455,3531.0,3530.7,0.1416]
[1754108934907,0.1426,3531.3,3530.7,0.1416]
[1754108935210,0.9455,3530.9,3530.7,0.1416]
[1754108935398,0.469,3530.9,3530.8,0.002]
[1754108936113,0.9455,3530.9,3530.8,0.002]
[1754108936714,1.0871,3530.9,3530.8,0.002]
[1754108941616,0.4765,3531.1,3530.8,0.002]
[1754108941908,0.1416,3530.9,3530.8,0.002]
[1754108943008,0.1416,3531.1,3530.8,0.4793]
[1754108943206,0.1416,3531.1,3530.8,0.002]
[1754108943410,0.6181,3531.1,3530.8,0.002]
[1754108944811,0.1416,3531.1,3530.8,0.002]
[1754108945189,0.1416,3531.1,3530.9,0.4773]
[1754108945681,0.001,3531.3,3530.9,0.4773]
[1754108945881,0.001,3531.3,3530.9,0.6189]
[1754108946082,0.001,3531.3,3530.9,0.1416]
[1754108946314,0.4775,3531.3,3530.9,0.1416]
[1754108946482,0.001,3531.3,3530.9,0.6189]
[1754108946683,0.001,3531.3,3531.0,0.4773]
[1754108947696,0.001,3531.3,3531.0,0.4734]
[1754108947897,0.001,3531.3,3531.1,0.4773]
[1754108948096,0.001,3531.3,3531.1,0.9507]
[1754108948715,0.001,3531.3,3530.9,0.1416]
[1754108948916,0.001,3531.3,3531.2,8.19197234]
[1754108949505,0.001,3531.3,3531.2,9.14267234]
[1754108950498,0.001,3531.3,3531.2,9.99373734]
[1754108952519,0.001,3531.3,3531.2,12.99373734]
[1754108952819,0.001,3531.3,3531.2,14.75980121]
[1754108953920,0.001,3531.7,3531.3,3.0]
[1754108954222,0.001,3531.7,3531.6,11.19197234]
[1754108954607,0.001,3531.7,3531.6,12.14267234]
[1754108955317,0.001,3531.7,3531.6,11.19197234]
[1754108958102,0.001,3531.7,3531.6,11.66927234]
[1754108958304,0.001,3531.7,3531.6,12.83873957]
[1754108958617,0.4775,3531.7,3531.6,3.0]
[1754108958824,0.001,3531.7,3531.6,3.1416]
[1754108959123,0.001,3531.7,3531.6,3.6191]
[1754108960127,0.001,3531.7,3531.6,3.4773]
[1754108960334,0.001,3531.7,3531.6,4.0923]
[1754108960529,0.001,3531.7,3531.6,5.75322723]
[1754108964836,0.001,3531.7,3531.6,10.07722723]
[1754108969142,0.001,3531.7,3531.6,10.19067523]
[1754108970319,0.001,3531.7,3531.6,10.18967523]
[1754108972647,0.001,3531.7,3531.6,9.23897523]
[1754108972942,0.001,3531.7,3531.6,9.72517523]
[1754108973252,0.001,3531.7,3531.6,10.17137523]
[1754108976845,0.001,3531.7,3531.6,4.91597523]
[1754108977047,0.5003,3531.7,3531.6,3.1416]
[1754108977212,0.001,3531.7,3531.6,3.1416]
[1754108978548,0.001,3531.7,3531.6,8.396]
[1754108983219,0.001,3531.7,3531.6,7.4636]
[1754108983433,0.001,3531.7,3531.6,9.62900523]
[1754108983827,0.001,3531.7,3531.6,10.07520523]
[1754108984451,0.001,3531.7,3531.6,17.22132957]
[1754108984638,0.001,3531.7,3531.6,16.58797234]
[1754108985443,0.001,3531.7,3531.6,15.65557234]
[1754108985623,0.001,3531.7,3531.6,16.70142934]
[1754108986625,0.001,3532.0,3531.7,3.0]
[1754108986852,0.001,3532.0,3531.9,3.0]
[1754108987069,0.001,3532.0,3531.9,3.1416]
[1754108987226,0.001,3532.0,3531.9,3.6278]
[1754108987426,0.001,3532.0,3531.9,5.28659723]
[1754108987766,0.001,3532.0,3531.9,4.80039723]
[1754108989749,0.001,3532.0,3531.9,5.28659723]
[1754108990863,0.001,3532.0,3531.9,5.73279723]
[1754108993982,0.001,3532.0,3531.9,5.28659723]
[1754108997767,0.001,3532.0,3531.9,5.72779723]
[1754109000488,0.001,3532.0,3531.9,3.6278]
[1754109000782,0.9195,3532.0,3531.9,3.1416]
[1754109001082,0.9195,3532.0,3531.9,3.4904]
[1754109001253,0.4904,3532.0,3531.9,3.4904]
[1754109001650,0.001,3532.0,3531.9,3.4904]
[1754109001888,0.001,3532.0,3531.9,6.27443723]
[1754109005698,0.001,3532.0,3531.9,5.34003723]
[1754109005862,0.001,3532.0,3531.9,7.8104]
[1754109006189,0.4904,3532.0,3531.9,3.4904]
[1754109006370,0.4904,3532.0,3531.9,7.8104]
[1754109006571,0.001,3532.0,3531.9,7.8104]
[1754109008702,0.001,3532.0,3531.9,8.8864]
[1754109008874,0.001,3532.0,3531.9,10.59443723]
[1754109012088,0.001,3532.0,3531.9,6.27443723]
[1754109012289,0.001,3532.0,3531.9,9.65903723]
[1754109012494,0.001,3532.0,3531.9,10.15223723]
[1754109013005,0.001,3532.0,3531.9,10.59343723]
[1754109015291,0.001,3532.4,3532.0,3.0]
[1754109015501,0.001,3532.4,3532.3,8.33357234]
[1754109015694,0.001,3532.4,3532.3,15.65257234]
[1754109015878,0.001,3532.4,3532.3,17.07637234]